[Event "44th Chess Olympiad Women 2022"]
[Site "Chennai"]
[Date "2022.08.01"]
[Round "4.78"]
[White "La Fleur, Zara"]
[Black "Morales Santos, Natasha"]
[Result "1/2-1/2"]
[WhiteElo "1513"]
[BlackElo "1924"]
[Annotator "NA RC"]
[PlyCount "78"]
[EventDate "2022.??.??"]
[TimeControl "60"]

1. e4 {[%emt 0:01:46]} e6 {[%emt 0:00:17]} 2. d4 {[%emt 0:00:11]} d5 {[%emt 0:
00:00]} 3. exd5 {[%emt 0:00:14]} exd5 {[%emt 0:00:12]} 4. Nf3 {[%emt 0:00:17]}
Bd6 {[%emt 0:00:15]} 5. Bd3 {[%emt 0:00:26]} Ne7 {[%emt 0:00:15]} 6. Bg5 {
[%emt 0:01:57]} f6 {[%emt 0:05:26]} 7. Bh4 {[%emt 0:00:23]} O-O {[%emt 0:01:30]
} 8. O-O {[%emt 0:01:04]} Nf5 {[%emt 0:01:25]} 9. Nbd2 {[%emt 0:02:19]} Nc6 {
[%emt 0:01:42]} 10. c3 {[%emt 0:03:10]} Nce7 {[%emt 0:15:37]} 11. Qc2 {[%emt 0:
00:00]} g6 {[%emt 0:03:19]} 12. Rfe1 {[%emt 0:07:25]} c6 {[%emt 0:05:07]} 13.
c4 {[%emt 0:08:48]} Qc7 {[%emt 0:14:49]} 14. Bg3 {[%emt 0:03:32]} Nxg3 {
[%emt 0:01:29]} 15. hxg3 {[%emt 0:00:15]} dxc4 {[%emt 0:05:27]} 16. Bxc4+ {
[%emt 0:01:43]} Kg7 {[%emt 0:03:16]} 17. Be6 {[%emt 0:04:02]} Bb4 {[%emt 0:00:
00]} 18. a3 {[%emt 0:02:30]} Bxd2 {[%emt 0:00:16]} 19. Qxd2 {[%emt 0:00:31]}
Qd6 {[%emt 0:01:22]} 20. Bxc8 {[%emt 0:08:41]} Raxc8 {[%emt 0:00:09]} 21. Rad1
{[%emt 0:05:54]} Rcd8 {[%emt 0:01:53]} 22. Qa5 {[%emt 0:05:01]} a6 {[%emt 0:00:
00]} 23. Rd3 {[%emt 0:07:21]} Rd7 {[%emt 0:03:30]} 24. Rde3 {[%emt 0:08:12]}
Nf5 {[%emt 0:02:18]} 25. Re6 {[%emt 0:01:12]} Qd5 {[%emt 0:00:45]} 26. Qb4 {
[%emt 0:04:16]} Rff7 {[%emt 0:02:44]} 27. R6e4 {[%emt 0:01:19]} a5 {[%emt 0:00:
00]} 28. Qc5 {[%emt 0:02:56]} a4 {[%emt 0:04:23]} 29. g4 {[%emt 0:01:55]} Nd6 {
[%emt 0:01:53]} 30. Qxd5 {[%emt 0:02:04]} cxd5 {[%emt 0:00:01]} 31. R4e2 {
[%emt 0:00:15]} h6 {[%emt 0:02:10]} 32. Nd2 {[%emt 0:00:45]} b5 {[%emt 0:02:40]
} 33. Nb1 {[%emt 0:01:34]} f5 {[%emt 0:00:58]} 34. Nc3 {[%emt 0:02:18]} fxg4 {
[%emt 0:00:12]} 35. Re5 {[%emt 0:00:20]} Nc4 {[%emt 0:00:35]} 36. Rxd5 {
[%emt 0:01:35]} Rxd5 {[%emt 0:00:01]} 37. Nxd5 {[%emt 0:00:10]} Rd7 {[%emt 0:
00:00]} 38. Nc3 {[%emt 0:00:23]} Rxd4 {[%emt 0:00:42]} 39. Nxb5 {[%emt 0:01:15]
} Rd2 {[%emt 0:00:32]} 1/2-1/2

[Event "44th Chess Olympiad Women 2022"]
[Site "Chennai"]
[Date "2022.08.01"]
[Round "4.78"]
[White "Vega Jimenez, Keyshla M."]
[Black "James, Shemilah"]
[Result "1-0"]
[WhiteElo "1653"]
[BlackElo "1590"]
[Annotator "NA RC"]
[PlyCount "101"]
[EventDate "2022.??.??"]
[TimeControl "60"]

1. e4 {[%emt 0:00:04]} e5 {[%emt 0:00:09]} 2. Nf3 {[%emt 0:00:08]} Nc6 {
[%emt 0:00:07]} 3. Nc3 {[%emt 0:00:10]} Nf6 {[%emt 0:00:10]} 4. d4 {[%emt 0:00:
00]} exd4 {[%emt 0:00:25]} 5. Nxd4 {[%emt 0:00:08]} Bb4 {[%emt 0:00:52]} 6.
Nxc6 {[%emt 0:00:46]} bxc6 {[%emt 0:00:38]} 7. Bd3 {[%emt 0:00:09]} O-O {
[%emt 0:03:44]} 8. O-O {[%emt 0:00:39]} Re8 {[%emt 0:02:18]} 9. Re1 {[%emt 0:
00:00]} d6 {[%emt 0:05:17]} 10. h3 {[%emt 0:04:24]} h6 {[%emt 0:01:08]} 11. Bd2
{[%emt 0:02:58]} Bb7 {[%emt 0:06:08]} 12. a3 {[%emt 0:07:35]} Ba5 {[%emt 0:00:
00]} 13. Qf3 {[%emt 0:05:02]} Bb6 {[%emt 0:08:35]} 14. Rad1 {[%emt 0:06:05]}
Bd4 {[%emt 0:11:56]} 15. Bc4 {[%emt 0:16:24]} Be5 {[%emt 0:02:50]} 16. Qd3 {
[%emt 0:11:09]} c5 {[%emt 0:18:09]} 17. f3 {[%emt 0:09:43]} Nh5 {[%emt 0:03:10]
} 18. Ne2 {[%emt 0:00:09]} Qh4 {[%emt 0:03:07]} 19. Bxf7+ {[%emt 0:02:01]} Kxf7
{[%emt 0:04:14]} 20. Qb3+ {[%emt 0:00:06]} d5 {[%emt 0:01:14]} 21. Qxb7 {
[%emt 0:00:45]} dxe4 {[%emt 0:04:21]} 22. Qd5+ {[%emt 0:01:44]} Kf8 {[%emt 0:
00:00]} 23. fxe4 {[%emt 0:05:09]} Nf6 {[%emt 0:03:11]} 24. Rf1 {[%emt 0:01:58]}
Rad8 {[%emt 0:03:20]} 25. Qxc5+ {[%emt 0:03:37]} Kg8 {[%emt 0:00:42]} 26. Bc3 {
[%emt 0:04:02]} Bxc3 {[%emt 0:01:34]} 27. Nxc3 {[%emt 0:00:30]} Rxd1 {[%emt 0:
00:00]} 28. Rxd1 {[%emt 0:00:23]} Qf4 {[%emt 0:01:47]} 29. Rf1 {[%emt 0:04:32]}
Qd2 {[%emt 0:01:44]} 30. e5 {[%emt 0:00:35]} Nd7 {[%emt 0:02:21]} 31. Qc4+ {
[%emt 0:03:37]} Kh8 {[%emt 0:00:27]} 32. Qxc7 {[%emt 0:03:11]} Qe3+ {[%emt 0:
00:00]} 33. Kh1 {[%emt 0:00:17]} Nxe5 {[%emt 0:00:42]} 34. Qd6 {[%emt 0:01:20]}
Nc4 {[%emt 0:02:15]} 35. Rf8+ {[%emt 0:00:32]} Rxf8 {[%emt 0:01:00]} 36. Qxf8+
{[%emt 0:00:09]} Kh7 {[%emt 0:00:07]} 37. Qf5+ {[%emt 0:00:06]} Kh8 {[%emt 0:
00:00]} 38. Qc8+ {[%emt 0:00:07]} Kh7 {[%emt 0:00:12]} 39. Qxc4 {[%emt 0:00:06]
} Qe1+ {[%emt 0:00:19]} 40. Kh2 {[%emt 0:00:16]} Qe5+ {[%emt 0:00:15]} 41. g3 {
[%emt 0:30:20]} Qf6 {[%emt 0:30:23]} 42. Qe4+ {[%emt 0:00:50]} Kh8 {[%emt 0:00:
00]} 43. Qe3 {[%emt 0:00:34]} a6 {[%emt 0:00:17]} 44. h4 {[%emt 0:02:23]} Qc6 {
[%emt 0:00:33]} 45. h5 {[%emt 0:01:26]} Qc8 {[%emt 0:00:42]} 46. Qe4 {[%emt 0:
00:00]} Qc5 {[%emt 0:00:26]} 47. Qf3 {[%emt 0:00:00]} a5 {[%emt 0:00:00]} 48.
b4 {[%emt 0:00:00]} axb4 {[%emt 0:00:00]} 49. axb4 {[%emt 0:00:00]} Qxb4 {
[%emt 0:00:00]} 50. Qa8+ {[%emt 0:00:00]} Kh7 {[%emt 0:00:00]} 51. Qe4+ {
[%emt 0:00:00]} 1-0

[Event "44th Chess Olympiad Women 2022"]
[Site "Chennai"]
[Date "2022.08.02"]
[Round "5.24"]
[White "Makka, Ioulia"]
[Black "Maklakova, Nellija"]
[Result "1-0"]
[WhiteElo "1975"]
[BlackElo "1819"]
[Annotator "NA RC"]
[PlyCount "101"]
[EventDate "2022.??.??"]
[TimeControl "60"]

1. e4 {[%emt 0:00:04]} e6 {[%emt 0:00:08]} 2. d4 {[%emt 0:00:08]} d5 {[%emt 0:
00:00]} 3. Nc3 {[%emt 0:00:08]} Bb4 {[%emt 0:00:57]} 4. e5 {[%emt 0:02:16]} c5
{[%emt 0:06:03]} 5. Bd2 {[%emt 0:00:46]} cxd4 {[%emt 0:03:21]} 6. Nb5 {[%emt 0:
00:00]} Bc5 {[%emt 0:04:06]} 7. b4 {[%emt 0:27:57]} Bf8 {[%emt 0:03:39]} 8.
Nxd4 {[%emt 0:05:03]} Bd7 {[%emt 0:02:34]} 9. Ngf3 {[%emt 0:10:03]} Nc6 {
[%emt 0:02:00]} 10. Nxc6 {[%emt 0:06:09]} bxc6 {[%emt 0:00:41]} 11. Bd3 {
[%emt 0:00:54]} f5 {[%emt 0:08:33]} 12. h4 {[%emt 0:06:40]} Qc7 {[%emt 0:04:26]
} 13. Qe2 {[%emt 0:06:58]} Ne7 {[%emt 0:02:51]} 14. c3 {[%emt 0:05:30]} c5 {
[%emt 0:02:39]} 15. bxc5 {[%emt 0:01:20]} Nc6 {[%emt 0:05:52]} 16. c4 {[%emt 0:
00:00]} dxc4 {[%emt 0:01:09]} 17. Bxc4 {[%emt 0:00:15]} Bxc5 {[%emt 0:00:14]}
18. O-O {[%emt 0:02:40]} Nd4 {[%emt 0:12:56]} 19. Nxd4 {[%emt 0:01:41]} Bxd4 {
[%emt 0:00:04]} 20. Rac1 {[%emt 0:06:04]} Qxe5 {[%emt 0:02:33]} 21. Qf3 {
[%emt 0:03:13]} O-O {[%emt 0:07:10]} 22. Rfe1 {[%emt 0:00:38]} Qd6 {[%emt 0:00:
00]} 23. Bf4 {[%emt 0:04:00]} Qb6 {[%emt 0:03:01]} 24. Rb1 {[%emt 0:01:35]} Qa5
{[%emt 0:08:37]} 25. Red1 {[%emt 0:01:37]} Qc5 {[%emt 0:01:03]} 26. Rbc1 {
[%emt 0:00:33]} Qb6 {[%emt 0:00:09]} 27. Bc7 {[%emt 0:01:43]} Qb2 {[%emt 0:00:
00]} 28. Qe2 {[%emt 0:01:03]} Qxe2 {[%emt 0:03:19]} 29. Bxe2 {[%emt 0:00:02]}
Bb2 {[%emt 0:00:11]} 30. Rb1 {[%emt 0:00:57]} Ba4 {[%emt 0:00:39]} 31. Rxb2 {
[%emt 0:00:29]} Bxd1 {[%emt 0:00:05]} 32. Bxd1 {[%emt 0:00:08]} Rac8 {[%emt 0:
00:00]} 33. Bf4 {[%emt 0:00:11]} Rc4 {[%emt 0:02:48]} 34. g3 {[%emt 0:00:43]}
Rd8 {[%emt 0:02:50]} 35. Bb3 {[%emt 0:00:40]} Rc6 {[%emt 0:00:06]} 36. Re2 {
[%emt 0:01:18]} Kf7 {[%emt 0:00:07]} 37. Re5 {[%emt 0:01:03]} h6 {[%emt 0:00:
00]} 38. Rxf5+ {[%emt 0:01:04]} Ke7 {[%emt 0:01:17]} 39. Ra5 {[%emt 0:00:40]}
a6 {[%emt 0:00:07]} 40. Re5 {[%emt 0:00:27]} Kf6 {[%emt 0:00:53]} 41. Re2 {
[%emt 0:30:46]} g5 {[%emt 0:30:31]} 42. hxg5+ {[%emt 0:00:00]} hxg5 {[%emt 0:
00:00]} 43. Be3 {[%emt 0:00:00]} g4 {[%emt 0:00:00]} 44. Re1 {[%emt 0:00:00]}
e5 {[%emt 0:00:00]} 45. Kf1 {[%emt 0:00:00]} Kf5 {[%emt 0:00:00]} 46. Ke2 {
[%emt 0:00:00]} Rb8 {[%emt 0:00:00]} 47. Rh1 {[%emt 0:00:00]} a5 {[%emt 0:00:
00]} 48. Rh5+ {[%emt 0:00:00]} Ke4 {[%emt 0:00:00]} 49. Rg5 {[%emt 0:00:00]}
Rxb3 {[%emt 0:00:00]} 50. axb3 {[%emt 0:00:00]} Rc2+ {[%emt 0:00:00]} 51. Bd2 {
[%emt 0:00:00]} 1-0

[Event "44th Chess Olympiad Women 2022"]
[Site "Chennai"]
[Date "2022.08.02"]
[Round "5.29"]
[White "Chong, Kai Ni Agnes"]
[Black "Bouah, Denise"]
[Result "0-1"]
[WhiteElo "1909"]
[BlackElo "1736"]
[Annotator "NA RC"]
[PlyCount "130"]
[EventDate "2022.??.??"]
[TimeControl "60"]

1. d4 {[%emt 0:00:03]} Nf6 {[%emt 0:00:08]} 2. c4 {[%emt 0:00:09]} g6 {[%emt 0:
00:00]} 3. Nf3 {[%emt 0:00:09]} Bg7 {[%emt 0:00:07]} 4. g3 {[%emt 0:00:07]} d5
{[%emt 0:00:18]} 5. cxd5 {[%emt 0:00:18]} Nxd5 {[%emt 0:00:06]} 6. Nc3 {
[%emt 0:00:15]} Nb6 {[%emt 0:00:09]} 7. e3 {[%emt 0:00:14]} O-O {[%emt 0:00:53]
} 8. Bg2 {[%emt 0:00:12]} Nc6 {[%emt 0:00:17]} 9. O-O {[%emt 0:00:11]} Re8 {
[%emt 0:00:20]} 10. Nh4 {[%emt 0:00:41]} a5 {[%emt 0:03:22]} 11. f4 {[%emt 0:
00:00]} e6 {[%emt 0:07:48]} 12. Nf3 {[%emt 0:06:54]} a4 {[%emt 0:07:57]} 13.
Ne4 {[%emt 0:07:21]} f6 {[%emt 0:11:02]} 14. Nc5 {[%emt 0:12:02]} e5 {[%emt 0:
00:00]} 15. dxe5 {[%emt 0:07:10]} fxe5 {[%emt 0:01:32]} 16. fxe5 {[%emt 0:00:
00]} Nxe5 {[%emt 0:14:55]} 17. Nxe5 {[%emt 0:02:17]} Qxd1 {[%emt 0:01:19]} 18.
Rxd1 {[%emt 0:00:07]} Bxe5 {[%emt 0:01:05]} 19. Nxb7 {[%emt 0:03:07]} Ra7 {
[%emt 0:07:31]} 20. Nc5 {[%emt 0:05:57]} a3 {[%emt 0:02:31]} 21. Rb1 {[%emt 0:
00:00]} axb2 {[%emt 0:03:47]} 22. Bxb2 {[%emt 0:00:20]} Rxa2 {[%emt 0:02:42]}
23. Bxe5 {[%emt 0:02:52]} Rxe5 {[%emt 0:00:22]} 24. Nd3 {[%emt 0:06:40]} Rxe3 {
[%emt 0:02:14]} 25. Nf4 {[%emt 0:02:37]} Rc2 {[%emt 0:02:43]} 26. Rb4 {[%emt 0:
00:00]} Bf5 {[%emt 0:05:43]} 27. Nd5 {[%emt 0:04:49]} Nxd5 {[%emt 0:06:28]} 28.
Bxd5+ {[%emt 0:00:08]} Kg7 {[%emt 0:00:13]} 29. g4 {[%emt 0:05:52]} Be6 {
[%emt 0:02:13]} 30. Bxe6 {[%emt 0:02:17]} Rxe6 {[%emt 0:00:04]} 31. g5 {
[%emt 0:00:11]} Re7 {[%emt 0:01:58]} 32. h4 {[%emt 0:02:35]} h6 {[%emt 0:00:15]
} 33. Rg4 {[%emt 0:01:44]} hxg5 {[%emt 0:00:52]} 34. Rxg5 {[%emt 0:00:58]} Kh6
{[%emt 0:00:20]} 35. Rgd5 {[%emt 0:01:18]} c5 {[%emt 0:01:38]} 36. Rf1 {
[%emt 0:03:41]} Ree2 {[%emt 0:00:58]} 37. Rf4 {[%emt 0:00:58]} Rc1+ {[%emt 0:
00:00]} 38. Rf1 {[%emt 0:00:06]} Rcc2 {[%emt 0:02:06]} 39. Rf4 {[%emt 0:00:16]}
Re1+ {[%emt 0:00:05]} 40. Rf1 {[%emt 0:00:05]} Rxf1+ {[%emt 0:00:31]} 41. Kxf1
{[%emt 0:30:05]} c4 {[%emt 0:30:14]} 42. Rc5 {[%emt 0:01:32]} c3 {[%emt 0:00:
00]} 43. Ke1 {[%emt 0:00:00]} Rc1+ {[%emt 0:00:00]} 44. Ke2 {[%emt 0:00:00]} c2
{[%emt 0:00:00]} 45. Kd2 {[%emt 0:00:00]} Rh1 {[%emt 0:00:00]} 46. Kxc2 {
[%emt 0:00:00]} Rxh4 {[%emt 0:00:00]} 47. Kd2 {[%emt 0:00:00]} Re4 {[%emt 0:00:
00]} 48. Rd5 {[%emt 0:00:00]} g5 {[%emt 0:00:00]} 49. Rd8 {[%emt 0:00:00]} Kh5
{[%emt 0:00:00]} 50. Rh8+ {[%emt 0:00:00]} Kg4 {[%emt 0:00:00]} 51. Rg8 {
[%emt 0:00:00]} Kh4 {[%emt 0:00:00]} 52. Kd3 {[%emt 0:00:00]} Re6 {[%emt 0:00:
00]} 53. Rg7 {[%emt 0:00:00]} g4 {[%emt 0:00:00]} 54. Rh7+ {[%emt 0:00:00]} Kg3
{[%emt 0:00:00]} 55. Rg7 {[%emt 0:00:00]} Kf3 {[%emt 0:00:00]} 56. Rf7+ {
[%emt 0:00:00]} Kg2 {[%emt 0:00:00]} 57. Rg7 {[%emt 0:00:00]} g3 {[%emt 0:00:
00]} 58. Rg8 {[%emt 0:00:00]} Kf2 {[%emt 0:00:00]} 59. Rf8+ {[%emt 0:00:00]}
Kg1 {[%emt 0:00:00]} 60. Rg8 {[%emt 0:00:00]} g2 {[%emt 0:00:00]} 61. Rg5 {
[%emt 0:00:00]} Kf2 {[%emt 0:00:00]} 62. Rf5+ {[%emt 0:00:00]} Kg3 {[%emt 0:00:
00]} 63. Rg5+ {[%emt 0:00:00]} Kf3 {[%emt 0:00:00]} 64. Rg8 {[%emt 0:00:00]}
Rd6+ {[%emt 0:00:00]} 65. Kc2 {[%emt 0:00:00]} Rf6 {[%emt 0:00:00]} 0-1

[Event "44th Chess Olympiad Women 2022"]
[Site "Chennai"]
[Date "2022.08.02"]
[Round "5.30"]
[White "Avila Fraire, Ameyalli"]
[Black "Tiba, Mahdi Attiyah"]
[Result "1/2-1/2"]
[WhiteElo "1907"]
[BlackElo "1759"]
[Annotator "NA RC"]
[PlyCount "97"]
[EventDate "2022.??.??"]
[TimeControl "60"]

1. e4 {[%emt 0:00:05]} d5 {[%emt 0:00:27]} 2. exd5 {[%emt 0:00:11]} Qxd5 {
[%emt 0:00:03]} 3. Nc3 {[%emt 0:00:08]} Qa5 {[%emt 0:00:03]} 4. d4 {[%emt 0:00:
00]} c6 {[%emt 0:00:04]} 5. a3 {[%emt 0:00:15]} Nf6 {[%emt 0:00:26]} 6. Bd3 {
[%emt 0:00:20]} Bg4 {[%emt 0:00:28]} 7. Nge2 {[%emt 0:00:35]} e6 {[%emt 0:00:
00]} 8. f3 {[%emt 0:02:19]} Bh5 {[%emt 0:00:19]} 9. O-O {[%emt 0:02:08]} Bg6 {
[%emt 0:01:30]} 10. Rb1 {[%emt 0:11:03]} Nbd7 {[%emt 0:10:09]} 11. b4 {[%emt 0:
00:00]} Qc7 {[%emt 0:09:17]} 12. Bf4 {[%emt 0:00:47]} Bd6 {[%emt 0:00:34]} 13.
Bxd6 {[%emt 0:03:08]} Qxd6 {[%emt 0:00:03]} 14. Ne4 {[%emt 0:13:25]} Qc7 {
[%emt 0:02:32]} 15. Re1 {[%emt 0:08:40]} O-O {[%emt 0:06:56]} 16. Qd2 {[%emt 0:
00:00]} Rad8 {[%emt 0:17:43]} 17. Nf4 {[%emt 0:11:02]} e5 {[%emt 0:16:30]} 18.
Nxf6+ {[%emt 0:01:02]} gxf6 {[%emt 0:00:19]} 19. Nxg6 {[%emt 0:04:41]} hxg6 {
[%emt 0:00:11]} 20. Qh6 {[%emt 0:01:01]} f5 {[%emt 0:04:11]} 21. f4 {[%emt 0:
00:00]} e4 {[%emt 0:07:14]} 22. Re3 {[%emt 0:04:32]} Qd6 {[%emt 0:00:20]} 23.
c3 {[%emt 0:00:18]} Qf6 {[%emt 0:00:37]} 24. Bc4 {[%emt 0:02:36]} b5 {[%emt 0:
00:00]} 25. Bb3 {[%emt 0:01:19]} Nb6 {[%emt 0:00:40]} 26. Rg3 {[%emt 0:01:54]}
Nd5 {[%emt 0:00:12]} 27. Bxd5 {[%emt 0:00:21]} cxd5 {[%emt 0:00:55]} 28. Ra1 {
[%emt 0:00:40]} Rc8 {[%emt 0:02:30]} 29. Rh3 {[%emt 0:00:33]} Qg7 {[%emt 0:00:
00]} 30. Qxg7+ {[%emt 0:00:09]} Kxg7 {[%emt 0:00:02]} 31. a4 {[%emt 0:00:30]}
a6 {[%emt 0:01:50]} 32. Kf2 {[%emt 0:00:22]} Rc6 {[%emt 0:04:03]} 33. Ke2 {
[%emt 0:00:15]} Re8 {[%emt 0:00:45]} 34. axb5 {[%emt 0:00:54]} axb5 {[%emt 0:
00:00]} 35. Ra5 {[%emt 0:00:07]} Rb6 {[%emt 0:07:48]} 36. Ra7 {[%emt 0:00:35]}
Rd8 {[%emt 0:00:47]} 37. Kd2 {[%emt 0:00:55]} Rbb8 {[%emt 0:00:18]} 38. Kc2 {
[%emt 0:00:52]} Ra8 {[%emt 0:00:04]} 39. Rxa8 {[%emt 0:00:27]} Rxa8 {[%emt 0:
00:00]} 40. Kb2 {[%emt 0:00:10]} Re8 {[%emt 0:00:52]} 41. Kc2 {[%emt 0:30:21]}
e3 {[%emt 0:32:01]} 42. Kd1 {[%emt 0:00:12]} e2+ {[%emt 0:00:04]} 43. Ke1 {
[%emt 0:00:04]} Re4 {[%emt 0:00:24]} 44. Rf3 {[%emt 0:00:13]} Kf6 {[%emt 0:00:
00]} 45. Rf2 {[%emt 0:00:00]} Re3 {[%emt 0:00:00]} 46. Rf3 {[%emt 0:00:00]} Re4
{[%emt 0:00:00]} 47. Rf2 {[%emt 0:00:00]} Re3 {[%emt 0:00:00]} 48. Rf3 {
[%emt 0:00:00]} Re4 {[%emt 0:00:00]} 49. Rf2 {[%emt 0:00:00]} 1/2-1/2

[Event "44th Chess Olympiad Women 2022"]
[Site "Chennai"]
[Date "2022.08.02"]
[Round "5.30"]
[White "Sara Masood Abdullah"]
[Black "Guillen Cristobal, Sandra N"]
[Result "0-1"]
[WhiteElo "1677"]
[BlackElo "1962"]
[Annotator "NA RC"]
[PlyCount "80"]
[EventDate "2022.??.??"]
[TimeControl "60"]

1. e4 {[%emt 0:00:05]} c5 {[%emt 0:00:08]} 2. Nf3 {[%emt 0:00:11]} Nc6 {
[%emt 0:00:07]} 3. d4 {[%emt 0:00:23]} cxd4 {[%emt 0:00:07]} 4. Nxd4 {[%emt 0:
00:00]} g6 {[%emt 0:00:05]} 5. c4 {[%emt 0:00:10]} Bg7 {[%emt 0:00:06]} 6. Be3
{[%emt 0:00:09]} Nf6 {[%emt 0:00:25]} 7. Nc3 {[%emt 0:00:24]} d6 {[%emt 0:00:
00]} 8. Be2 {[%emt 0:01:00]} Bd7 {[%emt 0:01:15]} 9. O-O {[%emt 0:00:58]} O-O {
[%emt 0:00:54]} 10. h3 {[%emt 0:03:31]} Nxd4 {[%emt 0:00:26]} 11. Bxd4 {
[%emt 0:00:39]} Bc6 {[%emt 0:00:14]} 12. Bf3 {[%emt 0:07:23]} a5 {[%emt 0:00:
00]} 13. Nd5 {[%emt 0:04:38]} Bxd5 {[%emt 0:02:53]} 14. cxd5 {[%emt 0:00:52]}
a4 {[%emt 0:03:41]} 15. Rc1 {[%emt 0:04:49]} Nd7 {[%emt 0:03:12]} 16. Be2 {
[%emt 0:02:24]} Qa5 {[%emt 0:01:17]} 17. Bxg7 {[%emt 0:03:18]} Kxg7 {[%emt 0:
00:00]} 18. Qd4+ {[%emt 0:00:08]} Kg8 {[%emt 0:00:17]} 19. Rc3 {[%emt 0:01:34]}
Rfc8 {[%emt 0:05:40]} 20. Rfc1 {[%emt 0:01:03]} Rxc3 {[%emt 0:00:34]} 21. Rxc3
{[%emt 0:02:07]} Nc5 {[%emt 0:05:19]} 22. h4 {[%emt 0:01:23]} b5 {[%emt 0:00:
00]} 23. h5 {[%emt 0:05:48]} b4 {[%emt 0:01:34]} 24. Rh3 {[%emt 0:00:46]} b3 {
[%emt 0:03:13]} 25. hxg6 {[%emt 0:03:00]} fxg6 {[%emt 0:01:22]} 26. axb3 {
[%emt 0:08:16]} Qe1+ {[%emt 0:01:30]} 27. Bf1 {[%emt 0:00:47]} axb3 {[%emt 0:
00:00]} 28. Re3 {[%emt 0:14:52]} Qb1 {[%emt 0:00:34]} 29. e5 {[%emt 0:03:14]}
Ra1 {[%emt 0:00:13]} 30. Qc4 {[%emt 0:01:19]} Qxb2 {[%emt 0:05:52]} 31. exd6 {
[%emt 0:01:12]} exd6 {[%emt 0:02:11]} 32. Qf4 {[%emt 0:03:56]} Ra8 {[%emt 0:00:
00]} 33. Re2 {[%emt 0:05:12]} Qc3 {[%emt 0:07:41]} 34. Re7 {[%emt 0:01:01]} Rf8
{[%emt 0:05:57]} 35. Qh6 {[%emt 0:06:41]} Qh8 {[%emt 0:00:35]} 36. Bb5 {
[%emt 0:05:41]} b2 {[%emt 0:01:13]} 37. Re1 {[%emt 0:04:13]} Qd4 {[%emt 0:00:
00]} 38. Qe3 {[%emt 0:04:03]} Qxe3 {[%emt 0:00:22]} 39. fxe3 {[%emt 0:00:12]}
Rb8 {[%emt 0:00:09]} 40. Rb1 {[%emt 0:01:43]} Rxb5 {[%emt 0:00:06]} 0-1

[Event "44th Chess Olympiad Women 2022"]
[Site "Chennai"]
[Date "2022.08.02"]
[Round "5.32"]
[White "Toro Pradenas, Maria Jose"]
[Black "Mbatha, Constance"]
[Result "1-0"]
[WhiteElo "1945"]
[BlackElo "1614"]
[Annotator "NA RC"]
[PlyCount "127"]
[EventDate "2022.??.??"]
[TimeControl "60"]

1. e4 {[%emt 0:00:02]} e5 {[%emt 0:00:16]} 2. Nf3 {[%emt 0:00:05]} Nc6 {
[%emt 0:00:08]} 3. Bb5 {[%emt 0:00:08]} Nf6 {[%emt 0:00:31]} 4. O-O {[%emt 0:
00:00]} Be7 {[%emt 0:00:28]} 5. Re1 {[%emt 0:00:42]} d6 {[%emt 0:01:06]} 6. c3
{[%emt 0:03:20]} Bd7 {[%emt 0:00:45]} 7. d4 {[%emt 0:00:28]} exd4 {[%emt 0:00:
00]} 8. cxd4 {[%emt 0:00:10]} a6 {[%emt 0:00:28]} 9. Bd3 {[%emt 0:11:57]} O-O {
[%emt 0:00:40]} 10. Nc3 {[%emt 0:00:50]} Bg4 {[%emt 0:03:21]} 11. Be3 {[%emt 0:
00:00]} Re8 {[%emt 0:02:21]} 12. h3 {[%emt 0:05:22]} Bh5 {[%emt 0:02:34]} 13.
d5 {[%emt 0:12:32]} Ne5 {[%emt 0:04:09]} 14. Be2 {[%emt 0:02:28]} Qc8 {[%emt 0:
00:00]} 15. Nd4 {[%emt 0:04:44]} Bxe2 {[%emt 0:06:33]} 16. Qxe2 {[%emt 0:00:16]
} Bf8 {[%emt 0:00:37]} 17. Rac1 {[%emt 0:06:28]} Ng6 {[%emt 0:01:26]} 18. f3 {
[%emt 0:05:28]} h6 {[%emt 0:03:13]} 19. Na4 {[%emt 0:08:08]} Qd7 {[%emt 0:00:
00]} 20. Qc2 {[%emt 0:00:28]} Rac8 {[%emt 0:01:10]} 21. Qb3 {[%emt 0:02:10]}
Rb8 {[%emt 0:08:39]} 22. Rc2 {[%emt 0:02:56]} c5 {[%emt 0:13:37]} 23. dxc6 {
[%emt 0:01:36]} bxc6 {[%emt 0:02:33]} 24. Nb6 {[%emt 0:03:56]} Rxb6 {[%emt 0:
00:00]} 25. Qxb6 {[%emt 0:00:16]} c5 {[%emt 0:00:40]} 26. Nb3 {[%emt 0:05:11]}
Re6 {[%emt 0:07:09]} 27. Qa5 {[%emt 0:04:18]} Ne5 {[%emt 0:05:13]} 28. Rd1 {
[%emt 0:00:54]} Qc8 {[%emt 0:00:34]} 29. Bf4 {[%emt 0:05:15]} Nc6 {[%emt 0:00:
00]} 30. Qc3 {[%emt 0:00:18]} Qa8 {[%emt 0:03:53]} 31. Rcd2 {[%emt 0:00:36]}
Ne8 {[%emt 0:01:28]} 32. Na5 {[%emt 0:00:54]} Nd4 {[%emt 0:01:31]} 33. Be3 {
[%emt 0:00:26]} Nb5 {[%emt 0:00:28]} 34. Qb3 {[%emt 0:00:53]} Rg6 {[%emt 0:00:
00]} 35. a4 {[%emt 0:00:35]} Nbc7 {[%emt 0:00:06]} 36. Bf2 {[%emt 0:02:47]} Ne6
{[%emt 0:00:40]} 37. Be3 {[%emt 0:00:28]} Qd8 {[%emt 0:01:02]} 38. Nc4 {
[%emt 0:00:50]} Ng5 {[%emt 0:01:38]} 39. Bxg5 {[%emt 0:00:20]} Qxg5 {[%emt 0:
00:00]} 40. Qe3 {[%emt 0:00:29]} Qh4 {[%emt 0:02:16]} 41. Kf1 {[%emt 0:04:16]}
Re6 {[%emt 0:02:36]} 42. Qf2 {[%emt 0:06:05]} Qf6 {[%emt 0:03:34]} 43. Nb6 {
[%emt 0:03:10]} Qe7 {[%emt 0:05:35]} 44. Qe2 {[%emt 0:02:58]} Qb7 {[%emt 0:00:
00]} 45. Nd5 {[%emt 0:00:58]} Kh8 {[%emt 0:00:38]} 46. Re1 {[%emt 0:03:13]} Qc6
{[%emt 0:02:17]} 47. Qc4 {[%emt 0:00:27]} Qb7 {[%emt 0:02:05]} 48. b4 {[%emt 0:
00:00]} cxb4 {[%emt 0:04:54]} 49. Qxb4 {[%emt 0:00:10]} Qc6 {[%emt 0:01:03]}
50. Rd3 {[%emt 0:00:44]} Rg6 {[%emt 0:01:43]} 51. Rc3 {[%emt 0:00:47]} Qd7 {
[%emt 0:00:17]} 52. Qc4 {[%emt 0:00:54]} Kh7 {[%emt 0:05:44]} 53. Qxa6 {
[%emt 0:00:49]} Nf6 {[%emt 0:01:29]} 54. Nxf6+ {[%emt 0:00:49]} gxf6 {[%emt 0:
00:00]} 55. Rc8 {[%emt 0:02:18]} Bg7 {[%emt 0:00:52]} 56. Qc6 {[%emt 0:00:19]}
Qa7 {[%emt 0:01:13]} 57. Qe8 {[%emt 0:01:30]} Rg5 {[%emt 0:00:44]} 58. f4 {
[%emt 0:04:20]} Rc5 {[%emt 0:02:24]} 59. Qg8+ {[%emt 0:00:49]} Kg6 {[%emt 0:00:
00]} 60. f5+ {[%emt 0:00:15]} Kg5 {[%emt 0:03:09]} 61. Qxg7+ {[%emt 0:00:16]}
Kf4 {[%emt 0:00:24]} 62. Qg4+ {[%emt 0:00:31]} Ke5 {[%emt 0:00:32]} 63. Qg3+ {
[%emt 0:00:09]} Kd4 {[%emt 0:00:19]} 64. Qxd6+ {[%emt 0:00:05]} 1-0